lending/lending_fUSD_20250808
["ID","MTS","AMOUNT","RATE_DAILY","PERIOD"]
[378028314,1754674311057,-637.96,0.00019214,2]
[378028315,1754674311067,-400.0,0.00019214,2]
[378028316,1754674311080,-4087.5,0.00019214,2]
[378028317,1754674311094,-400.0,0.00019214,2]
[378028318,1754674311104,-400.0,0.00019214,2]
[378028319,1754674311114,-1000.0,0.00019214,2]
[378028320,1754674311125,-1167.59,0.00019214,2]
[378028321,1754674311135,-839.14,0.00019214,2]
[378028322,1754674311146,-423.67,0.00019214,2]
[378028323,1754674311156,-1923.32,0.00019214,2]
[378028324,1754674311167,-400.0,0.00019214,2]
[378028325,1754674311177,-400.0,0.00019214,2]
[378028326,1754674311186,-2534.72,0.00019214,2]
[378028327,1754674311196,-3221.54,0.00019214,2]
[378028328,1754674311210,-400.0,0.00019214,2]
[378028329,1754674311220,-2686.59,0.00019214,2]
[378028330,1754674311230,-2767.77,0.00019214,2]
[378028331,1754674311240,-4079.49,0.00019214,2]
[378028332,1754674311249,-1045.66,0.00019214,2]
[378028333,1754674311258,-151.0,0.00019215,2]
[378028334,1754674311268,-151.742927,0.00019215,2]
[378028335,1754674311277,-151.0,0.00019215,2]
[378028336,1754674311286,-151.0,0.00019215,2]
[378028337,1754674311296,-175.595456,0.00019215,2]
[378028338,1754674311305,-175.595456,0.00019215,2]
[378028339,1754674311315,-3290.29,0.00019215,2]
[378028340,1754674311324,-2369.18,0.00019215,2]
[378028341,1754674311334,-209.4,0.00019215,2]
[378028342,1754674311343,-13166.57,0.00019215,2]
[378028343,1754674311353,-1590.7,0.00019215,2]
[378028344,1754674311362,-1258.97,0.00019215,2]
[378028345,1754674311372,-2052.34,0.00019215,2]
[378028346,1754674311476,-508.01,0.00019215,2]
[378028347,1754674311485,-5234.06,0.00019215,2]
[378028348,1754674311495,-400.0,0.00019215,2]
[378028349,1754674311504,-2455.21,0.00019215,2]
[378028350,1754674311514,-1846.96,0.00019215,2]
[378028351,1754674311523,-1243.92,0.00019215,2]
[378028352,1754674311533,-1638.01,0.00019215,2]
[378028353,1754674311543,-1639.76,0.00019215,2]
[378028354,1754674311553,-1386.66,0.00019215,2]
[378028355,1754674311562,-2763.15,0.00019215,2]
[378028356,1754674311575,-3536.52,0.00019215,2]
[378028357,1754674311584,-2140.87,0.00019215,2]
[378028358,1754674311594,-1711.31,0.00019215,2]
[378028359,1754674311604,-449.95,0.00019215,2]
[378028360,1754674311614,-151.0,0.00019216,2]
[378028361,1754674311624,-189.090672,0.00019216,2]
[378028362,1754674311634,-151.0,0.00019216,2]
[378028363,1754674311644,-151.0,0.00019216,2]
[378028364,1754674311653,-151.0,0.00019216,2]
[378028365,1754674311663,-151.0,0.00019216,2]
[378028366,1754674311672,-151.34891776,0.00019216,2]
[378028367,1754674311682,-267.836724,0.00019216,2]
[378028368,1754674311691,-267.836724,0.00019216,2]
[378028369,1754674311702,-151.0,0.00019216,2]
[378028370,1754674311712,-151.0,0.00019216,2]
[378028371,1754674311721,-151.0,0.00019216,2]
[378028372,1754674311730,-151.0,0.00019216,2]
[378028373,1754674311740,-266.990375,0.00019216,2]
[378028374,1754674311749,-151.0,0.00019216,2]
[378028375,1754674311758,-151.0,0.00019216,2]
[378028376,1754674311767,-204.71285,0.00019216,2]
[378028377,1754674311777,-151.0,0.00019216,2]
[378028378,1754674311786,-151.0,0.00019216,2]
[378028379,1754674311796,-151.0,0.00019217,2]
[378028380,1754674311805,-151.0,0.00019217,2]
[378028381,1754674311815,-519.34005897,0.00019221,2]
[378028382,1754674311824,-1000.0,0.00019221,2]
[378028383,1754674311833,-1049.31804982,0.00019221,2]
[378028384,1754674311843,-500.0,0.00019221,2]
[378028385,1754674311852,-279.85,0.00019236,2]
[378028386,1754674311862,-1179.66236926,0.00019237,2]
[378028387,1754674311871,-358.04,0.00019271,2]
[378028388,1754674311881,-155.66,0.0001928,2]
[378028389,1754674311890,-500.0,0.00019288,2]
[378028390,1754674311900,-168.0,0.00019288,2]
[378028391,1754674311911,-235.0,0.00019296,2]
[378028392,1754674311920,-3751.12,0.000193,2]
[378028393,1754674311930,-776.0,0.000193,2]
[378028394,1754674311939,-240.0,0.000193,2]
[378028395,1754674311949,-209.4,0.00019302,2]
[378028396,1754674311964,-235.0,0.00019312,2]
[378028397,1754674311973,-504.0,0.00019315,2]
[378028398,1754674311983,-222.0,0.00019317,2]
[378028399,1754674311992,-1259.44629761,0.00019321,2]
[378028400,1754674312002,-150.0,0.00019324,2]
[378028401,1754674312011,-19999.99,0.00019339,2]
[378028402,1754674312021,-172.14711092,0.00019364,2]
[378028403,1754674312030,-213.0,0.0001937,2]
[378028404,1754674312040,-178.15710763,0.0001938,2]
[378028405,1754674312049,-209.4,0.00019389,2]
[378028406,1754674312059,-1000.0,0.00019399,2]
[378028407,1754674312068,-1339.23022597,0.00019404,2]
[378028408,1754674312080,-235.0,0.00019428,2]
[378028409,1754674312090,-1360.35689689,0.00019468,2]
[378028410,1754674312100,-30077.532247,0.00019474,2]
[378028411,1754674312109,-151.0,0.00019477,2]
[378028412,1754674312121,-209.4,0.00019477,2]
[378028413,1754674312130,-400.0,0.00019486,2]
[378028414,1754674312139,-400.0,0.00019486,2]
[378028415,1754674312148,-661.11,0.00019486,2]
[378028416,1754674312160,-2954.91,0.00019486,2]
[378028417,1754674312170,-2275.54,0.00019486,2]
[378028418,1754674312179,-946.48,0.00019486,2]
[378028419,1754674312188,-848.32,0.00019486,2]
[378028420,1754674312198,-7691.76,0.00019486,2]
[378028421,1754674312208,-1032.75,0.00019486,2]
[378028422,1754674312217,-600.19,0.00019486,2]
[378028423,1754674312227,-1855.93,0.00019486,2]
[378028424,1754674312236,-675.93,0.00019486,2]
[378028425,1754674312246,-5291.16,0.00019486,2]
[378028426,1754674312255,-2731.24,0.00019486,2]
[378028427,1754674312264,-3569.89,0.00019486,2]
[378028428,1754674312274,-643.22,0.00019486,2]
[378028429,1754674312283,-1935.23,0.00019486,2]
[378028430,1754674312292,-400.0,0.00019486,2]
[378028431,1754674312301,-400.0,0.00019486,2]
[378028432,1754674312311,-774.94,0.00019486,2]
[378028433,1754674312320,-821.85,0.00019486,2]
[378028434,1754674312329,-538.44,0.00019486,2]
[378028435,1754674312339,-447.97,0.00019486,2]
[378028436,1754674312348,-424.02983079,0.00019487,2]
[378028437,1754674312357,-500.0,0.00019487,2]
[378028438,1754674312367,-500.0,0.00019487,2]
[378028439,1754674312376,-947.0,0.00019487,2]
[378028440,1754674312385,-190.8297193,0.00019487,2]
[378028441,1754674312394,-250.0,0.00019487,2]
[378028442,1754674312403,-500.0,0.00019487,2]
[378028443,1754674312412,-500.0,0.00019487,2]
[378028444,1754674312422,-1798.0,0.00019487,2]
[378028445,1754674312431,-977.0,0.00019487,2]
[378028446,1754674312441,-155.776285,0.00019487,2]
[378028447,1754674312451,-156.799685,0.00019487,2]
[378028448,1754674312461,-183.659282,0.00019487,2]
[378028449,1754674312470,-1000.0,0.00019487,2]
[378028450,1754674312479,-2162.28,0.00019487,2]
[378028451,1754674312488,-788.52,0.00019487,2]
[378028452,1754674312497,-606.57,0.00019487,2]
[378028453,1754674312507,-691.64,0.00019487,2]
[378028454,1754674312516,-504.23,0.00019487,2]
[378028455,1754674312525,-711.68,0.00019487,2]
[378028456,1754674312534,-672.8,0.00019487,2]
[378028457,1754674312543,-452.54348314,0.00019487,2]
[378028458,1754674312553,-767.72,0.00019487,2]
[378028459,1754674312563,-515.68107615,0.00019487,2]
[378028460,1754674312572,-400.0,0.00019487,2]
[378028461,1754674312582,-411.37,0.00019487,2]
[378028462,1754674312591,-692.39,0.00019487,2]
[378028463,1754674312601,-460.18,0.00019487,2]
[378028464,1754674312610,-680.33,0.00019487,2]
[378028465,1754674312619,-418.64,0.00019487,2]
[378028466,1754674312629,-400.0,0.00019487,2]
[378028467,1754674312638,-361.15789623,0.00019487,2]
[378028468,1754674312648,-1053.65,0.00019487,2]
[378028469,1754674312657,-400.0,0.00019487,2]
[378028470,1754674312666,-591.98,0.00019487,2]
[378028471,1754674312676,-400.0,0.00019487,2]
[378028472,1754674312686,-400.0,0.00019487,2]
[378028473,1754674312695,-400.0,0.00019487,2]
[378028474,1754674312704,-820.42,0.00019487,2]
[378028475,1754674312715,-540.05,0.00019487,2]
[378028476,1754674312724,-444.75,0.00019487,2]
[378028477,1754674312734,-400.0,0.00019487,2]
[378028478,1754674312743,-475.1,0.00019487,2]
[378028479,1754674312753,-1065.2,0.00019487,2]
[378028480,1754674312762,-663.95,0.00019487,2]
[378028481,1754674312772,-664.58,0.00019487,2]
[378028482,1754674312781,-400.0,0.00019487,2]
[378028483,1754674312790,-552.2,0.00019487,2]
[378028484,1754674312799,-795.59,0.00019487,2]
[378028485,1754674312809,-400.0,0.00019487,2]
[378028486,1754674312819,-1009.8,0.00019487,2]
[378028487,1754674312828,-400.0,0.00019487,2]
[378028488,1754674312837,-400.0,0.00019487,2]
[378028489,1754674312847,-400.0,0.00019487,2]
[378028490,1754674312856,-400.0,0.00019487,2]
[378028491,1754674312866,-400.0,0.00019487,2]
[378028492,1754674312876,-758.91,0.00019487,2]
[378028493,1754674312886,-400.0,0.00019487,2]
[378028494,1754674312896,-400.0,0.00019487,2]
[378028495,1754674312905,-405.9,0.00019487,2]
[378028496,1754674312914,-794.09,0.00019487,2]
[378028497,1754674312924,-860.42,0.00019487,2]
[378028498,1754674312933,-497.38,0.00019487,2]
[378028499,1754674312942,-400.0,0.00019487,2]
[378028500,1754674312951,-675.98,0.00019487,2]
[378028501,1754674312963,-400.0,0.00019487,2]
[378028502,1754674312971,-400.0,0.00019487,2]
[378028503,1754674312980,-1322.96,0.00019487,2]
[378028504,1754674312990,-515.94,0.00019487,2]
[378028505,1754674312999,-492.09,0.00019487,2]
[378028506,1754674313010,-1269.65,0.00019487,2]
[378028507,1754674313019,-1150.11,0.00019487,2]
[378028508,1754674313029,-401.72545122,0.00019487,2]
[378028509,1754674313039,-729.76,0.00019487,2]
[378028510,1754674313048,-400.0,0.00019487,2]
[378028511,1754674313057,-786.33,0.00019487,2]
[378028512,1754674313067,-400.0,0.00019487,2]
[378028513,1754674313078,-400.0,0.00019487,2]
[378028514,1754674313093,-400.0,0.00019487,2]
[378028515,1754674313103,-400.0,0.00019487,2]
[378028516,1754674313113,-933.94,0.00019487,2]
[378028517,1754674313124,-1309.0,0.00019487,2]
[378028518,1754674313135,-630.93,0.00019487,2]
[378028519,1754674313143,-1106.53,0.00019487,2]
[378028520,1754674313153,-1201.36,0.00019487,2]
[378028521,1754674313165,-400.0,0.00019487,2]
[378028522,1754674313175,-623.4,0.00019487,2]
[378028523,1754674313184,-1959.17,0.00019487,2]
[378028524,1754674313196,-400.0,0.00019487,2]
[378028525,1754674313207,-948.04,0.00019487,2]
[378028526,1754674313215,-1232.12,0.00019487,2]
[378028527,1754674313224,-501.95,0.00019487,2]
[378028528,1754674313234,-400.0,0.00019487,2]
[378028529,1754674313243,-1029.5,0.00019487,2]
[378028530,1754674313253,-400.0,0.00019487,2]
[378028531,1754674313262,-400.0,0.00019487,2]
[378028532,1754674313271,-400.0,0.00019487,2]
[378028533,1754674313281,-1075.7,0.00019487,2]
[378028534,1754674313290,-400.0,0.00019487,2]
[378028535,1754674313299,-1017.42,0.00019487,2]
[378028536,1754674313309,-467.67,0.00019487,2]
[378028537,1754674313318,-743.32,0.00019487,2]
[378028538,1754674313327,-400.0,0.00019487,2]
[378028539,1754674313337,-496.93,0.00019487,2]
[378028540,1754674313346,-466.11,0.00019487,2]
[378028541,1754674313356,-400.0,0.00019487,2]
[378028542,1754674313366,-400.0,0.00019487,2]
[378028543,1754674313375,-1260.4,0.00019487,2]
[378028544,1754674313384,-470.18,0.00019487,2]
[378028545,1754674313394,-400.0,0.00019487,2]
[378028546,1754674313403,-641.02,0.00019487,2]
[378028547,1754674313412,-400.0,0.00019487,2]
[378028548,1754674313422,-3797.91,0.00019487,2]
[378028549,1754674313432,-400.0,0.00019487,2]
[378028550,1754674313442,-400.0,0.00019487,2]
[378028551,1754674313451,-1052.14,0.00019487,2]
[378028552,1754674313462,-889.41,0.00019487,2]
[378028553,1754674313472,-739.75,0.00019487,2]
[378028554,1754674313482,-3365.51,0.00019487,2]
[378028555,1754674313491,-1750.29,0.00019487,2]
[378028556,1754674313502,-1099.06,0.00019487,2]
[378028557,1754674313513,-1630.68,0.00019487,2]
[378028558,1754674313523,-3225.29,0.00019487,2]
[378028559,1754674313533,-2289.35,0.00019487,2]
[378028560,1754674313543,-1124.14,0.00019487,2]
[378028561,1754674313552,-400.0,0.00019487,2]
[378028562,1754674313562,-838.76,0.00019487,2]
[378028563,1754674313571,-1564.85,0.00019487,2]
[378028564,1754674313580,-752.21,0.00019487,2]
[378028565,1754674313589,-1259.02,0.00019487,2]
[378028566,1754674313599,-1360.45,0.00019487,2]
[378028567,1754674313609,-400.0,0.00019487,2]
[378028568,1754674313618,-400.0,0.00019487,2]
[378028569,1754674313629,-447.46,0.00019487,2]
[378028570,1754674313638,-400.0,0.00019487,2]
[378028571,1754674313648,-457.11,0.00019487,2]
[378028572,1754674313658,-907.31,0.00019487,2]
[378028573,1754674313667,-635.96,0.00019487,2]
[378028574,1754674313676,-516.43,0.00019487,2]
[378028575,1754674313686,-2511.44,0.00019487,2]
[378028576,1754674313696,-841.87,0.00019487,2]
[378028577,1754674313707,-400.0,0.00019487,2]
[378028578,1754674313716,-909.41,0.00019487,2]
[378028579,1754674313726,-400.0,0.00019487,2]
[378028580,1754674313736,-633.54,0.00019487,2]
[378028581,1754674313745,-1757.88,0.00019487,2]
[378028582,1754674313754,-3698.85,0.00019487,2]
[378028583,1754674313763,-1660.57,0.00019487,2]
[378028584,1754674313773,-748.76,0.00019487,2]
[378028585,1754674313783,-400.0,0.00019487,2]
[378028586,1754674313792,-2130.8,0.00019487,2]
[378028587,1754674313802,-466.12,0.00019487,2]
[378028588,1754674313811,-724.03,0.00019487,2]
[378028589,1754674313820,-420.45,0.00019487,2]
[378028590,1754674313830,-1000.99,0.00019487,2]
[378028591,1754674313839,-956.66,0.00019487,2]
[378028592,1754674313849,-400.0,0.00019487,2]
[378028593,1754674313858,-825.21,0.00019487,2]
[378028594,1754674313867,-1301.7,0.00019487,2]
[378028595,1754674313876,-1094.31,0.00019487,2]
[378028596,1754674313886,-498.58,0.00019487,2]
[378028597,1754674313896,-815.06,0.00019487,2]
[378028598,1754674313905,-1195.76,0.00019487,2]
[378028599,1754674313915,-442.27,0.00019487,2]
[378028600,1754674313924,-484.27,0.00019487,2]
[378028601,1754674313934,-552.06,0.00019487,2]
[378028602,1754674313943,-400.0,0.00019487,2]
[378028603,1754674313953,-624.41,0.00019487,2]
[378028604,1754674313962,-2556.32,0.00019487,2]
[378028605,1754674313971,-844.68,0.00019487,2]
[378028606,1754674313980,-440.75,0.00019487,2]
[378028607,1754674313990,-1182.8,0.00019487,2]
[378028608,1754674313999,-1893.37,0.00019487,2]
[378028609,1754674314010,-400.0,0.00019487,2]
[378028610,1754674314021,-520.64,0.00019487,2]
[378028611,1754674314031,-3101.03,0.00019487,2]
[378028612,1754674314041,-524.52,0.00019487,2]
[378028613,1754674314050,-616.08,0.00019487,2]
[378028614,1754674314059,-732.88,0.00019487,2]
[378028615,1754674314068,-856.38,0.00019487,2]
[378028616,1754674314079,-4832.78,0.00019487,2]
[378028617,1754674314091,-627.0,0.00019487,2]
[378028618,1754674314100,-400.0,0.00019487,2]
[378028619,1754674314109,-952.86,0.00019487,2]
[378028620,1754674314119,-400.0,0.00019487,2]
[378028621,1754674314128,-1841.68,0.00019487,2]
[378028622,1754674314137,-400.0,0.00019487,2]
[378028623,1754674314146,-480.32,0.00019487,2]
[378028624,1754674314157,-400.0,0.00019487,2]
[378028625,1754674314166,-3627.65,0.00019487,2]
[378028626,1754674314176,-803.51,0.00019487,2]
[378028627,1754674314185,-429.23,0.00019487,2]
[378028628,1754674314194,-467.89,0.00019487,2]
[378028629,1754674314205,-1771.62,0.00019487,2]
[378028630,1754674314214,-781.89,0.00019487,2]
[378028631,1754674314223,-1163.42,0.00019487,2]
[378028632,1754674314232,-585.49,0.00019487,2]
[378028633,1754674314243,-784.71,0.00019487,2]
[378028634,1754674314252,-842.16,0.00019487,2]
[378028635,1754674314261,-971.72,0.00019487,2]
[378028636,1754674314271,-498.13,0.00019487,2]
[378028637,1754674314280,-437.29,0.00019487,2]
[378028638,1754674314292,-1364.1,0.00019487,2]
[378028639,1754674314303,-4194.96,0.00019487,2]
[378028640,1754674314313,-3720.86,0.00019487,2]
[378028641,1754674314322,-400.0,0.00019487,2]
[378028642,1754674314331,-400.0,0.00019487,2]
[378028643,1754674314340,-482.49,0.00019487,2]
[378028644,1754674314353,-932.41,0.00019487,2]
[378028645,1754674314364,-467.73,0.00019487,2]
[378028646,1754674314373,-694.04,0.00019487,2]
[378028647,1754674314382,-785.65,0.00019487,2]
[378028648,1754674314391,-1073.17,0.00019487,2]
[378028649,1754674314400,-2564.99,0.00019487,2]
[378028650,1754674314410,-1271.83,0.00019487,2]
[378028651,1754674314420,-400.0,0.00019487,2]
[378028652,1754674314429,-1694.26,0.00019487,2]
[378028653,1754674314438,-501.58,0.00019487,2]
[378028654,1754674314448,-561.21,0.00019487,2]
[378028655,1754674314458,-695.37,0.00019487,2]
[378028656,1754674314467,-1291.31,0.00019487,2]
[378028657,1754674314477,-400.0,0.00019487,2]
[378028658,1754674314486,-1430.86,0.00019487,2]
[378028659,1754674314495,-3151.61,0.00019487,2]
[378028660,1754674314505,-836.4,0.00019487,2]
[378028661,1754674314514,-421.02,0.00019487,2]
[378028662,1754674314524,-850.6,0.00019487,2]
[378028663,1754674314533,-2829.87,0.00019487,2]
[378028664,1754674314542,-400.0,0.00019487,2]
[378028665,1754674314552,-3147.45,0.00019487,2]
[378028666,1754674314561,-2412.01,0.00019487,2]
[378028667,1754674314570,-3174.96,0.00019487,2]
[378028668,1754674314579,-1344.29,0.00019487,2]
[378028669,1754674314589,-400.0,0.00019487,2]
[378028670,1754674314599,-252.83973113,0.00019488,2]
[378028671,1754674314608,-500.0,0.00019488,2]
[378028672,1754674314618,-500.0,0.00019488,2]
[378028673,1754674314627,-500.0,0.00019488,2]
[378028674,1754674314636,-1419.01415433,0.00019488,2]
[378028675,1754674314646,-400.0,0.00019488,2]
[378028676,1754674314656,-475.15,0.00019488,2]
[378028677,1754674314666,-400.0,0.00019488,2]
[378028678,1754674314675,-400.0,0.00019488,2]
[378028679,1754674314684,-400.0,0.00019488,2]
[378028680,1754674314694,-400.0,0.00019488,2]
[378028681,1754674314703,-400.0,0.00019488,2]
[378028682,1754674314713,-400.0,0.00019488,2]
[378028683,1754674314722,-400.0,0.00019488,2]
[378028684,1754674314732,-400.0,0.00019488,2]
[378028685,1754674314742,-400.0,0.00019488,2]
[378028686,1754674314751,-400.0,0.00019488,2]
[378028687,1754674314761,-300.0,0.00019488,2]
[378028688,1754674314773,-400.0,0.00019488,2]
[378028689,1754674314783,-613.14,0.00019488,2]
[378028690,1754674314794,-487.53,0.00019488,2]
[378028691,1754674314803,-400.0,0.00019488,2]
[378028692,1754674314813,-400.0,0.00019488,2]
[378028693,1754674314822,-400.0,0.00019488,2]
[378028694,1754674314832,-400.0,0.00019488,2]
[378028695,1754674314842,-470.26,0.00019488,2]
[378028696,1754674314851,-400.0,0.00019488,2]
[378028697,1754674314860,-400.0,0.00019488,2]
[378028698,1754674314870,-400.0,0.00019488,2]
[378028699,1754674314880,-400.0,0.00019488,2]
[378028700,1754674314890,-400.0,0.00019488,2]
[378028701,1754674314899,-400.0,0.00019488,2]
[378028702,1754674314908,-400.0,0.00019488,2]
[378028703,1754674314917,-580.1,0.00019488,2]
[378028704,1754674314926,-462.27,0.00019488,2]
[378028705,1754674314936,-400.0,0.00019488,2]
[378028706,1754674314945,-400.0,0.00019488,2]
[378028707,1754674314954,-400.0,0.00019488,2]
[378028708,1754674314964,-400.0,0.00019488,2]
[378028709,1754674314974,-479.7,0.00019488,2]
[378028710,1754674314983,-568.03,0.00019488,2]
[378028711,1754674314999,-400.0,0.00019488,2]
[378028712,1754674315008,-400.0,0.00019488,2]
[378028713,1754674315017,-400.0,0.00019488,2]
[378028714,1754674315026,-421.44,0.00019488,2]
[378028715,1754674315035,-418.64,0.00019488,2]
[378028716,1754674315045,-400.0,0.00019488,2]
[378028717,1754674315054,-504.49,0.00019488,2]
[378028718,1754674315063,-700.9,0.00019488,2]
[378028719,1754674315073,-520.77,0.00019488,2]
[378028720,1754674315086,-400.0,0.00019488,2]
[378028721,1754674315095,-400.0,0.00019488,2]
[378028722,1754674315105,-400.0,0.00019488,2]
[378028723,1754674315115,-400.0,0.00019488,2]
[378028724,1754674315125,-400.0,0.00019488,2]
[378028725,1754674315135,-400.0,0.00019488,2]
[378028726,1754674315145,-400.0,0.00019488,2]
[378028727,1754674315156,-400.0,0.00019488,2]
[378028728,1754674315165,-400.0,0.00019488,2]
[378028729,1754674315175,-400.0,0.00019488,2]
[378028730,1754674315184,-400.0,0.00019488,2]
[378028731,1754674315194,-400.0,0.00019488,2]
[378028732,1754674315203,-484.85,0.00019488,2]
[378028733,1754674315214,-400.0,0.00019488,2]
[378028734,1754674315223,-400.0,0.00019488,2]
[378028735,1754674315233,-432.17,0.00019488,2]
[378028736,1754674315250,-400.0,0.00019488,2]
[378028737,1754674315260,-400.0,0.00019488,2]
[378028738,1754674315269,-1178.17,0.00019488,2]
[378028739,1754674315279,-400.0,0.00019488,2]
[378028740,1754674315288,-400.0,0.00019488,2]
[378028741,1754674315297,-456.42,0.00019488,2]
[378028742,1754674315306,-400.0,0.00019488,2]
[378028743,1754674315315,-400.0,0.00019488,2]
[378028744,1754674315325,-534.77,0.00019488,2]
[378028745,1754674315335,-400.0,0.00019488,2]
[378028746,1754674315346,-400.0,0.00019488,2]
[378028747,1754674315356,-4517.84,0.00019488,2]
[378028748,1754674315366,-435.31,0.00019488,2]
[378028749,1754674315376,-334.35432155,0.00019488,2]
[378028750,1754674315386,-400.0,0.00019488,2]
[378028751,1754674315397,-477.72,0.00019488,2]
[378028752,1754674315406,-400.0,0.00019488,2]
[378028753,1754674315415,-400.0,0.00019488,2]
[378028754,1754674315424,-400.0,0.00019488,2]
[378028755,1754674315434,-4062.08,0.00019488,2]
[378028756,1754674315443,-400.0,0.00019488,2]
[378028757,1754674315453,-400.0,0.00019488,2]
[378028758,1754674315464,-400.0,0.00019488,2]
[378028759,1754674315474,-400.0,0.00019488,2]
[378028760,1754674315483,-400.0,0.00019488,2]
[378028761,1754674315494,-735.5,0.00019488,2]
[378028762,1754674315503,-400.0,0.00019488,2]
[378028763,1754674315513,-1368.24,0.00019488,2]
[378028764,1754674315523,-400.0,0.00019488,2]
[378028765,1754674315532,-400.0,0.00019488,2]
[378028766,1754674315542,-400.0,0.00019488,2]
[378028767,1754674315560,-400.0,0.00019488,2]
[378028768,1754674315570,-400.0,0.00019488,2]
[378028769,1754674315580,-400.0,0.00019488,2]
[378028770,1754674315589,-1187.72,0.00019488,2]
[378028771,1754674315598,-400.0,0.00019488,2]
[378028772,1754674315608,-400.0,0.00019488,2]
[378028773,1754674315617,-450.77,0.00019488,2]
[378028774,1754674315627,-400.0,0.00019488,2]
[378028775,1754674315636,-400.0,0.00019488,2]
[378028776,1754674315646,-400.0,0.00019488,2]
[378028777,1754674315655,-400.0,0.00019488,2]
[378028778,1754674315665,-400.0,0.00019488,2]
[378028779,1754674315675,-400.0,0.00019488,2]
[378028780,1754674315685,-1471.83,0.00019488,2]
[378028781,1754674315694,-400.0,0.00019488,2]
[378028782,1754674315704,-557.2,0.00019488,2]
[378028783,1754674315716,-400.0,0.00019488,2]
[378028784,1754674315726,-400.0,0.00019488,2]
[378028785,1754674315736,-436.5,0.00019488,2]
[378028786,1754674315745,-388.55850904,0.00019488,2]
[378028787,1754674315755,-439.47,0.00019488,2]
[378028788,1754674315765,-1359.72,0.00019488,2]
[378028789,1754674315775,-275.61530091,0.00019488,2]
[378028790,1754674315784,-400.0,0.00019488,2]
[378028791,1754674315794,-400.0,0.00019488,2]
[378028792,1754674315804,-400.0,0.00019488,2]
[378028793,1754674315813,-1098.38,0.00019488,2]
[378028794,1754674315823,-400.0,0.00019488,2]
[378028795,1754674315833,-400.0,0.00019488,2]
[378028796,1754674315842,-400.0,0.00019488,2]
[378028797,1754674315852,-505.49,0.00019488,2]
[378028798,1754674315862,-493.47,0.00019488,2]
[378028799,1754674315871,-400.0,0.00019488,2]
[378028800,1754674315881,-400.0,0.00019488,2]
[378028801,1754674316007,-412.55,0.00019488,2]
[378028802,1754674316016,-808.39,0.00019488,2]
[378028803,1754674316026,-496.49,0.00019488,2]
[378028804,1754674316035,-400.0,0.00019488,2]
[378028805,1754674316044,-400.0,0.00019488,2]
[378028806,1754674316053,-400.0,0.00019488,2]
[378028807,1754674316062,-226.14668614,0.00019488,2]
[378028808,1754674316071,-1155.05,0.00019488,2]
[378028809,1754674316083,-400.0,0.00019488,2]
[378028810,1754674316094,-400.0,0.00019488,2]
[378028811,1754674316103,-485.06,0.00019488,2]
[378028812,1754674316112,-521.07,0.00019488,2]
[378028813,1754674316123,-200.0,0.00019488,2]